fUSD/lending_fUSD_20251130
["ID","MTS","AMOUNT","RATE_DAILY","PERIOD"]
[395198555,1764537044040,-150.0,0.00016137,2]
[395198556,1764537044050,-150.0,0.00016137,2]
[395198557,1764537044060,-150.0,0.00016137,2]
[395198558,1764537044070,-150.0,0.00016137,2]
[395198559,1764537044080,-150.0,0.00016137,2]
[395198560,1764537044089,-150.0,0.00016137,2]
[395198561,1764537044100,-165.9240385,0.00016146,2]
[395198562,1764537044110,-500.0,0.00016148,2]
[395198563,1764537044119,-500.0,0.00016148,2]
[395198564,1764537044128,-500.0,0.00016148,2]
[395198565,1764537044138,-503.7,0.00016148,2]
[395198566,1764537044147,-500.0,0.00016148,2]
[395198567,1764537044156,-500.0,0.00016148,2]
[395198568,1764537044165,-500.0,0.00016148,2]
[395198569,1764537044174,-500.0,0.00016148,2]
[395198570,1764537044184,-500.0,0.00016148,2]
[395198571,1764537044195,-500.0,0.00016148,2]
[395198572,1764537044204,-578.20924308,0.00016149,2]
[395198573,1764537044213,-151.0,0.00016149,2]
[395198574,1764537044223,-151.0,0.00016149,2]
[395198575,1764537044232,-151.0,0.00016149,2]
[395198576,1764537044242,-160.0,0.00016149,2]
[395198577,1764537044251,-3000.0,0.00016149,2]
[395198578,1764537044261,-151.0,0.00016149,2]
[395198579,1764537044271,-533.88981491,0.00016149,2]
[395198580,1764537044280,-151.0,0.00016149,2]
[395198581,1764537044290,-8000.0,0.00016149,2]
[395198582,1764537044299,-151.0,0.00016149,2]
[395198583,1764537044308,-8000.0,0.00016149,2]
[395198584,1764537044319,-151.0,0.00016149,2]
[395198585,1764537044328,-8000.0,0.00016149,2]
[395198586,1764537044338,-151.0,0.00016149,2]
[395198587,1764537044348,-8000.0,0.00016149,2]
[395198588,1764537044358,-151.0,0.00016149,2]
[395198589,1764537044368,-8000.0,0.00016149,2]
[395198590,1764537044377,-151.0,0.00016149,2]
[395198591,1764537044387,-8000.0,0.00016149,2]
[395198592,1764537044396,-151.0,0.00016149,2]
[395198593,1764537044406,-151.0,0.00016149,2]
[395198594,1764537044415,-151.0,0.00016149,2]
[395198595,1764537044425,-8000.0,0.00016149,2]
[395198596,1764537044443,-151.0,0.00016149,2]
[395198597,1764537044453,-8000.0,0.00016149,2]
[395198598,1764537044463,-151.0,0.00016149,2]
[395198599,1764537044475,-7437.42744146,0.00016149,2]
[395198600,1764537044484,-151.0,0.00016149,2]
[395198601,1764537044495,-151.0,0.00016149,2]
[395198602,1764537044506,-322.6107,0.00016149,2]
[395198603,1764537044516,-194.72792766,0.00016149,2]
[395198604,1764537044526,-194.72792766,0.00016149,2]
[395198605,1764537044536,-151.0,0.00016149,2]
[395198606,1764537044546,-151.0,0.00016149,2]
[395198607,1764537044556,-250.0,0.00016149,2]
[395198608,1764537044566,-151.0,0.00016149,2]
[395198609,1764537044576,-250.0,0.00016149,2]
[395198610,1764537044586,-151.0,0.00016149,2]
[395198611,1764537044595,-250.0,0.00016149,2]
[395198612,1764537044605,-151.0,0.00016149,2]
[395198613,1764537044615,-500.0,0.00016149,2]
[395198614,1764537044625,-250.0,0.00016149,2]
[395198615,1764537044635,-151.0,0.00016149,2]
[395198616,1764537044645,-500.0,0.00016149,2]
[395198617,1764537044655,-300.0,0.00016149,2]
[395198618,1764537044665,-250.0,0.00016149,2]
[395198619,1764537044675,-151.0,0.00016149,2]
[395198620,1764537044684,-500.0,0.00016149,2]
[395198621,1764537044695,-250.0,0.00016149,2]
[395198622,1764537044704,-151.0,0.00016149,2]
[395198623,1764537044715,-500.0,0.00016149,2]
[395198624,1764537044725,-250.0,0.00016149,2]
[395198625,1764537044734,-151.0,0.00016149,2]
[395198626,1764537044745,-500.0,0.00016149,2]
[395198627,1764537044754,-250.0,0.00016149,2]
[395198628,1764537044765,-151.0,0.00016149,2]
[395198629,1764537044774,-500.0,0.00016149,2]
[395198630,1764537044784,-250.0,0.00016149,2]
[395198631,1764537044794,-151.0,0.00016149,2]
[395198632,1764537044803,-500.0,0.00016149,2]
[395198633,1764537044814,-500.0,0.00016149,2]
[395198634,1764537044823,-151.0,0.00016149,2]
[395198635,1764537044833,-250.0,0.00016149,2]
[395198636,1764537044842,-500.0,0.00016149,2]
[395198637,1764537044851,-500.0,0.00016149,2]
[395198638,1764537044861,-250.0,0.00016149,2]
[395198639,1764537044871,-151.0,0.00016149,2]
[395198640,1764537044880,-500.0,0.00016149,2]
[395198641,1764537044890,-500.0,0.00016149,2]
[395198642,1764537044899,-250.0,0.00016149,2]
[395198643,1764537044909,-500.0,0.00016149,2]
[395198644,1764537044919,-500.0,0.00016149,2]
[395198645,1764537044929,-250.0,0.00016149,2]
[395198646,1764537044938,-500.0,0.00016149,2]
[395198647,1764537044949,-500.0,0.00016149,2]
[395198648,1764537044959,-1000.0,0.00016149,2]
[395198649,1764537044969,-500.0,0.00016149,2]
[395198650,1764537044978,-500.0,0.00016149,2]
[395198651,1764537044988,-250.0,0.00016149,2]
[395198652,1764537044997,-1000.0,0.00016149,2]
[395198653,1764537045007,-500.0,0.00016149,2]
[395198654,1764537045017,-500.0,0.00016149,2]
[395198655,1764537045026,-250.0,0.00016149,2]
[395198656,1764537045036,-1000.0,0.00016149,2]
[395198657,1764537045045,-500.0,0.00016149,2]
[395198658,1764537045055,-250.0,0.00016149,2]
[395198659,1764537045064,-1000.0,0.00016149,2]
[395198660,1764537045074,-500.0,0.00016149,2]
[395198661,1764537045084,-250.0,0.00016149,2]
[395198662,1764537045094,-1000.0,0.00016149,2]
[395198663,1764537045104,-767.61793263,0.00016149,2]
[395198664,1764537045114,-500.0,0.00016149,2]
[395198665,1764537045123,-250.0,0.00016149,2]
[395198666,1764537045133,-1000.0,0.00016149,2]
[395198667,1764537045143,-500.0,0.00016149,2]
[395198668,1764537045152,-1000.0,0.00016149,2]
[395198669,1764537045162,-250.0,0.00016149,2]
[395198670,1764537045172,-500.0,0.00016149,2]
[395198671,1764537045181,-1000.0,0.00016149,2]
[395198672,1764537045192,-250.0,0.00016149,2]
[395198673,1764537045202,-500.0,0.00016149,2]
[395198674,1764537045211,-1000.0,0.00016149,2]
[395198675,1764537045220,-250.0,0.00016149,2]
[395198676,1764537045230,-1000.0,0.00016149,2]
[395198677,1764537045239,-250.0,0.00016149,2]
[395198678,1764537045249,-250.0,0.00016149,2]
[395198679,1764537045258,-1000.0,0.00016149,2]
[395198680,1764537045268,-250.0,0.00016149,2]
[395198681,1764537045278,-250.0,0.00016149,2]
[395198682,1764537045287,-1000.0,0.00016149,2]
[395198683,1764537045297,-250.0,0.00016149,2]
[395198684,1764537045306,-250.0,0.00016149,2]
[395198685,1764537045316,-1000.0,0.00016149,2]
[395198686,1764537045326,-250.0,0.00016149,2]
[395198687,1764537045336,-250.0,0.00016149,2]
[395198688,1764537045345,-250.0,0.00016149,2]
[395198689,1764537045355,-500.0,0.00016149,2]
[395198690,1764537045364,-250.0,0.00016149,2]
[395198691,1764537045374,-500.0,0.00016149,2]
[395198692,1764537045383,-250.0,0.00016149,2]
[395198693,1764537045393,-1000.0,0.00016149,2]
[395198694,1764537045403,-500.0,0.00016149,2]
[395198695,1764537045413,-250.0,0.00016149,2]
[395198696,1764537045424,-1000.0,0.00016149,2]
[395198697,1764537045436,-500.0,0.00016149,2]
[395198698,1764537045447,-250.0,0.00016149,2]
[395198699,1764537045457,-1000.0,0.00016149,2]
[395198700,1764537045467,-500.0,0.00016149,2]
[395198701,1764537045477,-250.0,0.00016149,2]
[395198702,1764537045486,-1000.0,0.00016149,2]
[395198703,1764537045495,-500.0,0.00016149,2]
[395198704,1764537045507,-250.0,0.00016149,2]
[395198705,1764537045516,-1000.0,0.00016149,2]
[395198706,1764537045527,-250.0,0.00016149,2]
[395198707,1764537045537,-500.0,0.00016149,2]
[395198708,1764537045546,-1000.0,0.00016149,2]
[395198709,1764537045556,-250.0,0.00016149,2]
[395198710,1764537045565,-500.0,0.00016149,2]
[395198711,1764537045576,-1000.0,0.00016149,2]
[395198712,1764537045585,-250.0,0.00016149,2]
[395198713,1764537045595,-500.0,0.00016149,2]
[395198714,1764537045605,-1000.0,0.00016149,2]
[395198715,1764537045615,-500.0,0.00016149,2]
[395198716,1764537045624,-1000.0,0.00016149,2]
[395198717,1764537045634,-500.0,0.00016149,2]
[395198718,1764537045643,-1000.0,0.00016149,2]
[395198719,1764537045653,-500.0,0.00016149,2]
[395198720,1764537045663,-158.33980161,0.00016149,2]
[395198721,1764537045672,-1000.0,0.00016149,2]
[395198722,1764537045794,-500.0,0.00016149,2]
[395198723,1764537045804,-1000.0,0.00016149,2]
[395198724,1764537045814,-620.0,0.00016149,2]
[395198725,1764537045824,-1000.0,0.00016149,2]
[395198726,1764537045833,-257.91778498,0.00016149,2]
[395198727,1764537045843,-172.37618779,0.0001615,2]
[395198728,1764537045852,-150.0,0.00016155,2]
[395198729,1764537045862,-375.13937185,0.00016159,2]
[395198730,1764537045871,-500.0,0.00016159,2]
[395198731,1764537045880,-500.0,0.00016159,2]
[395198732,1764537045890,-500.0,0.00016159,2]
[395198733,1764537045899,-150.0,0.00016161,2]
[395198734,1764537045908,-165.9240385,0.00016163,2]
[395198735,1764537045918,-150.0,0.00016164,2]
[395198736,1764537045928,-151.0,0.00016165,2]
[395198737,1764537045938,-150.0,0.00016168,2]
[395198739,1764537045948,-165.9240385,0.0001618,2]
[395198741,1764537045957,-150.0,0.00016182,2]
[395198742,1764537045966,-150.0,0.00016187,2]
[395198743,1764537045975,-150.0,0.0001619,2]
[395198744,1764537045985,-1072.41,0.00016191,2]
[395198745,1764537045995,-150.0,0.00016191,2]
[395198747,1764537046004,-200.0,0.00016192,2]
[395198749,1764537046013,-500.0,0.00016192,2]
[395198751,1764537046022,-200.0,0.00016192,2]
[395198753,1764537046031,-150.0,0.00016194,2]
[395198755,1764537046040,-165.9240385,0.00016197,2]
[395198757,1764537046049,-600.0,0.000162,2]
[395198759,1764537046059,-150.0,0.0001621,2]
[395198761,1764537046067,-14049.60731983,0.00016212,2]
[395198763,1764537046076,-165.9240385,0.00016214,2]
[395198765,1764537046085,-150.0,0.00016217,2]
[395198767,1764537046094,-150.0,0.00016227,2]
[395198769,1764537046104,-165.9240385,0.00016231,2]
[395198771,1764537046113,-150.0,0.00016231,2]
[395198773,1764537046122,-150.0,0.00016237,2]
[395198774,1764537046131,-150.0,0.00016243,2]
[395198776,1764537046141,-165.9240385,0.00016249,2]
[395198778,1764537046151,-150.0,0.0001625,2]
[395198780,1764537046160,-150.0,0.00016258,2]
[395198782,1764537046169,-150.0,0.00016258,2]
[395198784,1764537046178,-150.0,0.00016263,2]
[395198786,1764537046188,-1600.0,0.00016265,2]
[395198788,1764537046197,-165.9240385,0.00016266,2]
[395198790,1764537046207,-150.0,0.0001627,2]
[395198792,1764537046217,-150.0,0.00016271,2]
[395198794,1764537046227,-165.9240385,0.00016283,2]
[395198796,1764537046236,-150.0,0.00016287,2]
[395198798,1764537046247,-150.0,0.00016294,2]
[395198801,1764537046256,-150.0,0.00016296,2]
[395198803,1764537046266,-150.0,0.000163,2]
[395198805,1764537046275,-165.9240385,0.000163,2]
[395198806,1764537046285,-150.0,0.00016307,2]
[395198808,1764537046295,-150.0,0.00016307,2]
[395198810,1764537046306,-150.0,0.00016307,2]
[395198813,1764537046316,-165.9240385,0.00016317,2]
[395198814,1764537046325,-150.0,0.00016323,2]
[395198817,1764537046335,-165.9240385,0.00016334,2]
[395198818,1764537046343,-150.0,0.00016336,2]
[395198820,1764537046352,-150.0,0.00016337,2]
[395198822,1764537046362,-320.78402693,0.00016338,2]
[395198824,1764537046371,-150.0,0.00016349,2]
[395198827,1764537046380,-150.0,0.00016349,2]
[395198829,1764537046390,-165.9240385,0.00016351,2]
[395198831,1764537046399,-150.0,0.00016355,2]
[395198833,1764537046408,-150.0,0.00016357,2]
[395198835,1764537046418,-150.0,0.0001636,2]
[395198836,1764537046428,-150.0,0.00016363,2]
[395198839,1764537046442,-165.9240385,0.00016369,2]
[395198840,1764537046451,-150.0,0.00016372,2]
[395198842,1764537046460,-150.0,0.00016376,2]
[395198844,1764537046470,-150.0,0.0001638,2]
[395198846,1764537046480,-165.9240385,0.00016386,2]
[395198848,1764537046490,-150.0,0.00016387,2]
[395198849,1764537046499,-1250.0,0.00016395,2]
[395198851,1764537046509,-1250.0,0.00016395,2]
[395198853,1764537046519,-1250.0,0.00016395,2]
[395198854,1764537046528,-1250.0,0.00016395,2]
[395198856,1764537046538,-1250.0,0.00016395,2]
[395198857,1764537046547,-1250.0,0.00016395,2]
[395198858,1764537046557,-1250.0,0.00016395,2]
[395198859,1764537046567,-1250.0,0.00016395,2]
[395198860,1764537046576,-831.0,0.00016395,2]
[395198861,1764537046585,-1250.0,0.00016395,2]
[395198862,1764537046595,-831.0,0.00016395,2]
[395198863,1764537046604,-153.0,0.00016395,2]
[395198864,1764537046613,-153.0,0.00016395,2]
[395198865,1764537046622,-150.0,0.00016402,2]
[395198866,1764537046632,-165.9240385,0.00016403,2]
[395198867,1764537046642,-150.0,0.00016404,2]
[395198868,1764537046651,-150.0,0.00016408,2]
[395198869,1764537046660,-150.0,0.0001642,2]
[395198870,1764537046669,-165.9240385,0.0001642,2]
[395198871,1764537046678,-150.0,0.0001642,2]
[395198872,1764537046687,-150.0,0.0001642,2]
[395198874,1764537046697,-150.0,0.00016429,2]
[395198875,1764537046707,-150.0,0.00016437,2]
[395198876,1764537046716,-165.9240385,0.00016437,2]
[395198877,1764537046726,-150.0,0.00016438,2]
[395198878,1764537046735,-150.0,0.00016438,2]
[395198879,1764537046744,-12412.87,0.00016438,2]
[395198880,1764537046754,-322.33,0.00016438,2]
[395198881,1764537046763,-257.05910787,0.00016438,2]
[395198882,1764537046776,-163.91,0.0001644,2]
[395198883,1764537046785,-150.0,0.00016444,2]
[395198884,1764537046795,-150.0,0.0001645,2]
[395198885,1764537046805,-150.0,0.00016452,2]
[395198886,1764537046814,-165.9240385,0.00016454,2]
[395198887,1764537046824,-150.0,0.00016455,2]
[395198888,1764537046833,-1072.41,0.00016465,2]
[395198889,1764537046842,-165.9240385,0.00016472,2]
[395198890,1764537046851,-670.06266618,0.00016473,2]
[395198891,1764537046860,-600.0,0.00016474,2]
[395198892,1764537046869,-150.0,0.00016477,2]
[395198893,1764537046879,-150.0,0.00016477,2]
[395198894,1764537046888,-150.0,0.0001648,2]
[395198895,1764537046898,-150.0,0.00016482,2]
[395198896,1764537046907,-150.0,0.00016483,2]
[395198897,1764537046916,-150.0,0.00016487,2]
[395198898,1764537046925,-165.9240385,0.00016489,2]
[395198899,1764537046935,-1265.0,0.000165,2]
[395198900,1764537046944,-1466.0,0.000165,2]
[395198901,1764537046955,-150.0,0.00016501,2]
[395198902,1764537046964,-150.0,0.00016501,2]
[395198903,1764537046973,-165.9240385,0.00016506,2]
[395198904,1764537046983,-150.0,0.00016509,2]
[395198905,1764537046992,-150.0,0.00016516,2]
[395198906,1764537047001,-165.9240385,0.00016523,2]
[395198907,1764537047010,-150.0,0.00016533,2]
[395198908,1764537047020,-150.0,0.00016535,2]
[395198909,1764537047030,-150.0,0.00016537,2]
[395198910,1764537047039,-150.0,0.00016539,2]
[395198911,1764537047049,-165.9240385,0.0001654,2]
[395198912,1764537047059,-150.0,0.00016546,2]
[395198913,1764537047069,-150.0,0.0001655,2]
[395198914,1764537047078,-150.0,0.00016553,2]
[395198915,1764537047087,-14049.60731983,0.00016556,2]
[395198916,1764537047097,-165.9240385,0.00016557,2]
[395198917,1764537047107,-150.0,0.00016562,2]
[395198918,1764537047116,-150.0,0.00016562,2]
[395198919,1764537047125,-165.9240385,0.00016575,2]
[395198920,1764537047134,-150.0,0.00016575,2]
[395198921,1764537047143,-150.0,0.00016575,2]
[395198922,1764537047153,-150.0,0.00016587,2]
[395198923,1764537047163,-150.0,0.00016588,2]
[395198924,1764537047172,-150.0,0.00016589,2]
[395198925,1764537047182,-150.0,0.0001659,2]
[395198926,1764537047192,-165.9240385,0.00016592,2]
[395198927,1764537047203,-150.0,0.00016598,2]
[395198928,1764537047212,-165.9240385,0.00016609,2]
[395198929,1764537047221,-150.0,0.00016609,2]
[395198930,1764537047230,-150.0,0.00016615,2]
[395198931,1764537047240,-150.0,0.00016622,2]
[395198932,1764537047250,-150.0,0.00016625,2]
[395198933,1764537047259,-165.9240385,0.00016626,2]
[395198934,1764537047268,-150.0,0.00016629,2]
[395198935,1764537047278,-150.0,0.00016637,2]
[395198936,1764537047288,-150.0,0.00016641,2]
[395198937,1764537047297,-165.9240385,0.00016643,2]
[395198938,1764537047307,-150.0,0.00016647,2]
[395198939,1764537047316,-150.0,0.00016647,2]
[395198940,1764537047325,-150.0,0.00016647,2]
[395198941,1764537047335,-165.9240385,0.0001666,2]
[395198942,1764537047344,-150.0,0.00016661,2]
[395198943,1764537047354,-150.0,0.00016668,2]
[395198944,1764537047363,-150.0,0.00016672,2]
[395198945,1764537047372,-165.9240385,0.00016677,2]
[395198946,1764537047381,-150.0,0.00016687,2]
[395198947,1764537047391,-150.0,0.00016694,2]
[395198948,1764537047401,-165.9240385,0.00016695,2]
[395198949,1764537047410,-150.0,0.00016695,2]
[395198950,1764537047419,-151.0,0.00016697,2]
[395198951,1764537047429,-151.0,0.00016697,2]
[395198952,1764537047443,-3000.0,0.00016697,2]
[395198953,1764537047453,-553.64373807,0.00016697,2]
[395198954,1764537047463,-151.0,0.00016697,2]
[395198955,1764537047473,-201.93286099,0.00016697,2]
[395198956,1764537047482,-201.93286099,0.00016697,2]
[395198957,1764537047492,-642.94,0.00016697,2]
[395198958,1764537047501,-150.0,0.00016697,2]
[395198959,1764537047510,-150.0,0.00016703,2]
[395198960,1764537047519,-165.9240385,0.00016712,2]
[395198961,1764537047529,-151.0,0.00016713,2]
[395198962,1764537047539,-150.0,0.00016718,2]
[395198963,1764537047548,-150.0,0.00016721,2]
[395198964,1764537047558,-165.9240385,0.00016729,2]
[395198965,1764537047567,-150.0,0.00016733,2]
[395198966,1764537047576,-150.0,0.00016735,2]
[395198967,1764537047586,-150.0,0.00016737,2]
[395198968,1764537047595,-207.4,0.00016739,2]
[395198969,1764537047604,-1072.41,0.00016739,2]
[395198970,1764537047613,-200.0,0.0001674,2]
[395198971,1764537047622,-200.0,0.0001674,2]
[395198972,1764537047632,-150.0,0.00016744,2]
[395198973,1764537047641,-150.0,0.00016744,2]
[395198974,1764537047651,-165.9240385,0.00016746,2]
[395198975,1764537047661,-150.0,0.00016747,2]
[395198976,1764537047669,-600.0,0.00016748,2]
[395198977,1764537047679,-150.0,0.0001676,2]
[395198978,1764537047687,-165.9240385,0.00016763,2]
[395198979,1764537047697,-150.0,0.00016769,2]
[395198980,1764537047707,-150.0,0.00016774,2]
[395198981,1764537047717,-150.0,0.00016774,2]
[395198982,1764537047730,-165.9240385,0.0001678,2]
[395198983,1764537047739,-150.0,0.00016786,2]
[395198984,1764537047748,-532.59351283,0.0001679,2]
[395198985,1764537047758,-500.0,0.0001679,2]
[395198986,1764537047769,-319.34909176,0.0001679,2]
[395198987,1764537047779,-500.0,0.0001679,2]
[395198988,1764537047787,-383.85,0.0001679,2]
[395198989,1764537047796,-150.0,0.00016792,2]
[395198990,1764537047806,-168.0,0.00016794,2]
[395198991,1764537047815,-168.0,0.00016795,2]
[395198992,1764537047825,-165.9240385,0.00016798,2]
[395198993,1764537047835,-150.0,0.00016798,2]
[395198994,1764537047844,-2970.36,0.000168,2]
[395198995,1764537047853,-150.0,0.00016801,2]
[395198996,1764537047864,-227.0,0.00016804,2]
[395198997,1764537047873,-150.0,0.00016806,2]
[395198998,1764537047882,-150.0,0.00016807,2]
[395198999,1764537047895,-165.9240385,0.00016815,2]
[395199000,1764537047904,-150.0,0.00016816,2]
[395199001,1764537047913,-150.0,0.00016816,2]
[395199002,1764537047923,-150.0,0.00016827,2]
[395199003,1764537047932,-165.9240385,0.00016832,2]
[395199004,1764537047941,-150.0,0.00016836,2]
[395199005,1764537047950,-150.0,0.00016841,2]
[395199006,1764537047959,-150.0,0.00016842,2]
[395199007,1764537047970,-165.9240385,0.00016849,2]
[395199008,1764537047979,-150.0,0.00016854,2]
[395199009,1764537047988,-698.31665151,0.00016854,2]
[395199010,1764537047997,-150.0,0.0001686,2]
[395199011,1764537048007,-200.0,0.00016863,2]
[395199012,1764537048016,-200.0,0.00016864,2]
[395199013,1764537048025,-200.0,0.00016864,2]
[395199014,1764537048034,-200.0,0.00016864,2]
[395199015,1764537048044,-200.0,0.00016864,2]
[395199016,1764537048053,-150.0,0.00016865,2]
[395199017,1764537048063,-165.9240385,0.00016866,2]
[395199018,1764537048073,-150.0,0.00016873,2]
[395199019,1764537048083,-150.0,0.00016878,2]
[395199020,1764537048092,-150.0,0.0001688,2]
[395199021,1764537048101,-165.9240385,0.00016883,2]
[395199022,1764537048110,-736.0,0.00016885,2]
[395199023,1764537048119,-150.0,0.00016886,2]
[395199024,1764537048129,-150.0,0.00016889,2]
[395199025,1764537048138,-150.0,0.00016897,2]
[395199026,1764537048147,-2647.7093,0.000169,2]
[395199027,1764537048157,-14049.60731983,0.000169,2]
[395199028,1764537048166,-176.3146302,0.000169,2]
[395199029,1764537048175,-1126.1238356,0.000169,2]
[395199030,1764537048184,-2096.48853402,0.000169,2]
[395199031,1764537048193,-670.06266618,0.000169,2]
[395199032,1764537048202,-9327.0,0.000169,2]
[395199033,1764537048212,-165.9240385,0.00016901,2]
[395199034,1764537048222,-150.0,0.00016907,2]
[395199035,1764537048233,-150.0,0.00016914,2]
[395199036,1764537048242,-165.9240385,0.00016918,2]
[395199037,1764537048253,-150.0,0.00016923,2]
[395199038,1764537048263,-150.0,0.0001693,2]
[395199039,1764537048272,-150.0,0.00016933,2]
[395199040,1764537048282,-165.9240385,0.00016935,2]
[395199041,1764537048292,-150.0,0.00016936,2]
[395199042,1764537048303,-150.0,0.00016938,2]
[395199043,1764537048313,-823.0,0.00016938,2]
[395199044,1764537048322,-492.9693918,0.00016944,2]
[395199045,1764537048331,-287.0,0.00016946,2]
[395199046,1764537048340,-150.0,0.0001695,2]
[395199047,1764537048349,-165.9240385,0.00016952,2]
[395199048,1764537048358,-500.0,0.00016953,2]
[395199049,1764537048367,-500.0,0.00016953,2]
[395199050,1764537048376,-500.0,0.00016953,2]
[395199051,1764537048385,-500.0,0.00016953,2]
[395199052,1764537048395,-500.0,0.00016953,2]
[395199053,1764537048406,-500.0,0.00016953,2]
[395199054,1764537048416,-503.7,0.00016953,2]
[395199055,1764537048428,-503.7,0.00016953,2]
[395199056,1764537048440,-500.0,0.00016953,2]
[395199057,1764537048449,-500.0,0.00016953,2]
[395199058,1764537048458,-500.0,0.00016953,2]
[395199059,1764537048467,-500.0,0.00016953,2]
[395199060,1764537048479,-500.0,0.00016953,2]
[395199061,1764537048489,-500.0,0.00016953,2]
[395199062,1764537048498,-500.0,0.00016953,2]
[395199063,1764537048507,-500.0,0.00016953,2]
[395199064,1764537048516,-500.0,0.00016953,2]
[395199065,1764537048526,-500.0,0.00016953,2]
[395199066,1764537048535,-500.0,0.00016953,2]
[395199067,1764537048544,-500.0,0.00016953,2]
[395199068,1764537048553,-5421.2807281,0.00016954,2]
[395199069,1764537048562,-364913.4241044,0.00016954,2]
[395199070,1764537048571,-309.826341,0.00016954,2]
[395199071,1764537048581,-929.4790232,0.00016954,2]
[395199072,1764537048590,-4111.9419672,0.00016954,2]
[395199073,1764537048601,-1892.8800377,0.00016954,2]
[395199074,1764537048611,-9793.8903767,0.00016954,2]
[395199075,1764537048621,-748.0915316,0.00016954,2]
[395199076,1764537048630,-88497.5191848,0.00016954,2]
[395199077,1764537048640,-52625.0,0.00016959,2]
[395199078,1764537048650,-150.0,0.0001696,2]
[395199079,1764537048660,-250.0,0.00016961,2]
[395199080,1764537048670,-165.9240385,0.00016969,2]
[395199081,1764537048681,-166.65415748,0.00016973,2]
[395199082,1764537048691,-172.14260256,0.00016973,2]
[395199083,1764537048707,-174.27937181,0.00016973,2]
[395199084,1764537048719,-500.0,0.00016973,2]
[395199085,1764537048730,-295.05852426,0.00016973,2]
[395199086,1764537048740,-565.90233254,0.00016973,2]
[395199087,1764537048750,-500.0,0.00016973,2]
[395199088,1764537048760,-507.35080236,0.00016973,2]
[395199089,1764537048770,-500.0,0.00016973,2]
[395199090,1764537048779,-161.07388452,0.00016973,2]
[395199091,1764537048789,-500.0,0.00016973,2]
[395199092,1764537048799,-500.0,0.00016973,2]
[395199093,1764537048809,-500.0,0.00016973,2]
[395199094,1764537048819,-160.07187961,0.00016973,2]
[395199095,1764537048829,-500.0,0.00016973,2]
[395199096,1764537048838,-514.18188343,0.00016973,2]
[395199097,1764537048848,-500.0,0.00016973,2]
[395199098,1764537048858,-501.42223441,0.00016973,2]
[395199099,1764537048868,-500.0,0.00016973,2]
[395199100,1764537048878,-500.0,0.00016973,2]
[395199101,1764537048887,-500.0,0.00016973,2]
[395199102,1764537048897,-500.0,0.00016973,2]
[395199103,1764537048907,-500.0,0.00016973,2]
[395199104,1764537048918,-500.0,0.00016973,2]
[395199105,1764537048928,-500.0,0.00016973,2]
[395199106,1764537048940,-162.44041448,0.00016973,2]
[395199107,1764537048953,-168.14188112,0.00016973,2]
[395199108,1764537048963,-500.0,0.00016973,2]
[395199109,1764537048972,-500.40107887,0.00016973,2]
[395199110,1764537048983,-534.42146095,0.00016973,2]
[395199111,1764537048992,-500.0,0.00016973,2]